[Event "MARCEL 1st Div Ch-League 2019"]
[Site "Dhaka"]
[Date "2019.11.19"]
[Round "8.12"]
[White "Md. Nasim Hossain, Bhuiyan"]
[Black "Avik, Sarker"]
[Result "0-1"]
[ECO "C42"]
[WhiteElo "1801"]
[BlackElo "1980"]
[Annotator "NA"]
[PlyCount "75"]
[EventDate "2019.11.12"]
[EventCountry "BAN"]
[SourceTitle "playchess.com"]
[Source "ChessBase"]
[SourceQuality "1"]
[TimeControl "5400+30"]

{[%evp 8,75,51,41,36,32767,32767,35,31,14,32767,32767,32767,32767,32767,16,17,16,33,0,50,15,167,32767,32767,175,198,154,176,204,194,32767,-114,-112,199,32767,32767,32767,32767,210,205,162,164,0,195,-732,-732,-756,-714,-718,-779,-785,-330,-828,-763,-476,-838,-916,-968,-2209,-882,-886,-2427,-1255,-5197,-29966,-29977,-5345,-29980,-29958]} 1. e4 {[%emt 1:30:30]} e5 {[%emt 1:30:30]} 2. Nf3 {[%emt 0:00:30]} Nf6 {[%emt 0:00:30]} 3. Nxe5 {[%emt 0:00:30]} d6 {[%emt 0:00:30]} 4. Nf3 {[%emt 0:00:30]} Nxe4 {[%emt 0:00:30]} 5. d4 {[%emt 0:00:30]} d5 {[%emt 0:00:30]} 6. Bd3 {[%emt 0:00:30]} Bd6 {[%emt 0:00:30]} 7. O-O {[%emt 0:00:30]} O-O {[%emt 0:00:30]} 8. c4 {[%emt 0:00:30]} c6 {[%emt 0:00:30]} 9. Nc3 {[%emt 0:00:30]} Nxc3 {[%emt 0:00:30]} 10. bxc3 {[%emt 0:00:30]} dxc4 {[%emt 0:00:30]} 11. Bxc4 {[%emt 0:00:30]} Bf5 {[%emt 0:00:30]} 12. Bg5 {[%emt 0:00:30] C42: Petroff Defence: 3 Nxe5 and unusual White 3rd moves} Qa5 {[%emt 0:00:30]} 13. Qd2 {[%emt 0:00:30]} (13. Nh4 Be6 14. Bxe6 Qxg5 15. Nf3 Qa5 16. Bb3 Nd7 17. Qd3 Nf6 18. g3 g6 19. Rae1 Rae8 {½-½ (31) Sasikiran,K (2675)-Banusz,T (2619) Linares 2019}) 13... Bg4 $146 {[%emt 0:00:30]} ({Predecessor:} 13... Nd7 14. Bf4 Qc7 15. Bxd6 Qxd6 16. Rfe1 Rfe8 17. Re3 Nb6 18. Bb3 Nd5 19. Ne5 Be6 {0-1 (50) Kacharava,N (2392)-Zarubitski,V (2435) Kirishi 2018}) 14. Nh4 {[%emt 0:00:30]} h6 $2 {[%emt 0:00:30]} (14... Nd7 $11 {and Black stays safe.}) 15. Bxh6 {[%emt 0:00:30]} gxh6 {[%emt 0:00:30]} 16. Qxh6 {[%emt 0:00:30]} Qh5 {[%emt 0:00:30]} 17. Qxd6 {[%emt 0:00:30]} Qxh4 {[%emt 0:00:30]} 18. Rfe1 {[%emt 0:00:30]} Nd7 {[%emt 0:00:30]} 19. f3 {[%emt 0:00:30]} Bf5 {[%emt 0:00:30]} 20. g4 {[%emt 0:00:30]} Be6 $2 {[%emt 0:00:30]} (20... Nb6 $17 {keeps the pressure on.} 21. Bb3 Bd3) 21. Bxe6 {[%emt 0:00:30]} fxe6 {[%emt 0:00:30]} 22. Qxd7 {[%emt 0:00:30]} Rxf3 {[%emt 0:00:30]} 23. Qxe6+ {[%emt 0:00:30]} Kh8 {[%emt 0:00:30]} 24. Qe5+ {[%emt 0:00:30]} Kg8 {[%emt 0:00:30]} 25. Qe6+ $2 {[%emt 0:00:30]} (25. Rf1 $18 Raf8 26. Rxf3 Rxf3 27. Re1) 25... Kh8 {[%emt 0:00:30]} 26. Re5 $4 {[%emt 0:00:30] [#]} (26. Rf1 $18 Rff8 27. Rae1) 26... Qf2+ $1 {[%emt 0:00:30]} 27. Kh1 {[%emt 0:00:30] [#]} Rh3 $1 {[%emt 0:00:30]} 28. Rh5+ {[%emt 0:00:30]} Rxh5 {[%emt 0:00:30]} 29. gxh5 {[%emt 0:00:30]} Qf3+ {[%emt 0:00:30] Double Attack} 30. Kg1 {[%emt 0:00:30]} Rg8+ {[%emt 0:00:30]} 31. Qxg8+ {[%emt 0:00:30]} Kxg8 {[%emt 0:00:30]} 32. Rf1 {[%emt 0:00:30]} Qxc3 {[%emt 0:00:30]} 33. Kg2 {[%emt 0:00:30]} Qxd4 {[%emt 0:00:30]} 34. Kg3 {[%emt 0:00:30]} c5 {[%emt 0:00:30]} 35. Rf4 {[%emt 0:00:30]} Qg1+ {[%emt 0:00:30]} 36. Kh4 {[%emt 0:00:30]} Qxh2+ {[%emt 0:00:30] Double Attack} 37. Kg5 {[%emt 0:00:30]} Qxa2 {[%emt 0:00:30]} 38. Rf6 {[%emt 0:00:30]} 0-1

[Event "MARCEL 1st Div Ch-League 2019"]
[Site "Dhaka"]
[Date "2019.11.20"]
[Round "9.1"]
[White "Yasir Ali, Khan Evan"]
[Black "Suvradeepta, Das"]
[Result "0-1"]
[ECO "B06"]
[WhiteElo "1930"]
[BlackElo "1997"]
[Annotator "NA"]
[PlyCount "114"]
[EventDate "2019.11.12"]
[EventCountry "BAN"]
[SourceTitle "playchess.com"]
[Source "ChessBase"]
[SourceQuality "1"]
[TimeControl "5400+30"]

{[%evp 8,110,27,32,19,7,17,32767,32767,32767,32767,32767,32767,0,3,-34,32767,-45,-40,-56,32767,-104,32767,32767,-73,-83,-57,-63,-47,-44,-29,-33,-18,-49,-59,-58,-57,-50,-41,-51,-50,-86,-81,32767,32767,-79,-52,-97,-41,-59,-34,-84,-95,32767,-94,-122,-90,-117,32767,-81,-72,-89,-50,-74,-59,-71,-75,-92,-75,-61,-62,32767,-61,-87,-38,-29,-46,-70,-29,-71,-24,-139,-141,-268,-299,-245,-284,-304,-286,32767,32767,-313,-330,32767,32767,32767,32767,32767,32767,32767,32767,32767,32767,32767,-521]} 1. e4 {[%emt 0:00:00]} g6 {[%emt 0:00:00]} 2. d4 {[%emt 0:00:37]} Bg7 {[%emt 0:00:00]} 3. Bc4 {[%emt 0:00:21]} c6 {[%emt 0:00:00]} 4. Nf3 {[%emt 0:00:32]} d5 {[%emt 0:00:08]} 5. exd5 {[%emt 0:00:11]} (5. Bb3 Bg4 6. h3 Bxf3 7. Qxf3 e6 8. e5 Nd7 9. Be3 Ne7 10. h4 Nf5 11. h5 Nxe3 12. Qxe3 {0-1 (28) Fasching,M (2029)-Hulshof,P (2180) Heraklion 2019}) 5... cxd5 {[%emt 0:00:03]} 6. Bb5+ {[%emt 0:00:24] B06: Modern Defence} Bd7 {[%emt 0:00:30]} 7. Bxd7+ {[%emt 0:01:13]} Nxd7 {[%emt 0:00:14]} 8. O-O {[%emt 0:00:42]} Ngf6 {[%emt 0:00:04]} 9. Re1 $146 {[%emt 0:01:09]} ({Predecessor:} 9. c3 O-O 10. h3 Qc7 11. Re1 Rfe8 12. Bg5 {½-½ (66) Rodriguez,J (1689)-Barcelo Fraixanet,M (1533) Montevideo 2018}) 9... O-O {[%emt 0:00:07]} 10. Qe2 {[%emt 0:00:57]} e6 {[%emt 0:00:12]} 11. c4 {[%emt 0:00:56]} dxc4 {[%emt 0:00:23]} 12. Qxc4 {[%emt 0:00:08]} Nb6 {[%emt 0:00:32]} 13. Qb3 {[%emt 0:00:27]} Qd5 {[%emt 0:01:09]} 14. Qxd5 {[%emt 0:01:39]} (14. Qd1 $15) 14... Nfxd5 {[%emt 0:01:03]} 15. Bd2 {[%emt 0:01:30]} Rfd8 {[%emt 0:03:46]} 16. Na3 {[%emt 0:02:16]} h6 {[%emt 0:02:24]} 17. Rac1 {[%emt 0:01:40]} Rdc8 {[%emt 0:00:35]} 18. b3 {[%emt 0:00:39]} Bf8 {[%emt 0:01:55]} 19. Nc4 {[%emt 0:00:20]} Nb4 {[%emt 0:03:23]} 20. Bxb4 {[%emt 0:02:49]} Bxb4 {[%emt 0:00:03]} 21. Red1 {[%emt 0:01:28]} Nd5 {[%emt 0:01:02]} 22. a3 {[%emt 0:01:00]} Be7 {[%emt 0:00:27]} 23. a4 {[%emt 0:02:35]} Rc7 {[%emt 0:01:21]} 24. g3 {[%emt 0:02:46]} Rac8 {[%emt 0:00:19]} 25. Kg2 {[%emt 0:00:36]} b6 {[%emt 0:12:49]} 26. Nfe5 {[%emt 0:01:53]} a6 {[%emt 1:10:31]} 27. Nd3 {[%emt 0:02:46]} b5 {[%emt 0:00:00]} 28. axb5 axb5 {[%emt 0:00:00]} 29. Nce5 {[%emt 0:05:46]} Rc3 {[%emt 0:01:30]} 30. Rxc3 {[%emt 1:07:40]} Rxc3 {[%emt 0:00:00]} 31. b4 {[%emt 1:07:34]} Kg7 {[%emt 0:00:00]} ({Much worse is} 31... Nxb4 $6 32. Nxb4 Bxb4 33. Rb1 $11) 32. Nc5 {[%emt 1:05:32]} Rc2 {[%emt 0:03:00]} 33. Rb1 {[%emt 1:02:57]} Bd6 {[%emt 0:00:00]} 34. Nc6 {[%emt 0:00:00]} Ra2 {[%emt 0:00:00]} 35. Nb7 {[%emt 0:01:00]} Bc7 {[%emt 0:01:00]} 36. Nc5 {[%emt 0:01:30]} h5 {[%emt 0:01:30]} 37. Nd3 {[%emt 0:02:00]} Rd2 {[%emt 0:02:00]} 38. Nc5 {[%emt 0:02:30]} Ne3+ {[%emt 0:02:30]} 39. Kg1 {[%emt 0:00:30]} Ng4 {[%emt 0:00:00]} 40. Rf1 {[%emt 0:01:00]} Bb6 {[%emt 0:00:00]} 41. h3 {[%emt 0:01:30]} Nf6 {[%emt 0:04:00]} 42. Re1 {[%emt 0:02:00]} Nd5 {[%emt 0:04:30]} 43. Ra1 {[%emt 0:00:30]} h4 {[%emt 0:00:30]} (43... g5 $17) 44. Ra3 {[%emt 0:01:00]} (44. gxh4 $11 Nf4 45. Ra6 Rd1+ 46. Kh2) 44... hxg3 {[%emt 0:00:00]} 45. fxg3 {[%emt 0:00:00] [#]} (45. Rxg3 $17 {was the only defense.} Nf4 46. Ra3) 45... Nxb4 $1 {[%emt 0:00:30]} 46. Nxb4 {[%emt 0:01:00]} Rxd4 {[%emt 0:00:00]} 47. Nbd3 {[%emt 0:00:30]} Rc4 {[%emt 0:00:30]} 48. Rb3 Bxc5+ 49. Kg2 {[%emt 0:01:30]} Bd6 {[%emt 0:01:30]} 50. Rxb5 {[%emt 0:02:00]} Rc2+ {[%emt 0:00:00]} 51. Kf3 {[%emt 0:02:30]} Rc3 {[%emt 0:00:00]} 52. Ke2 Bxg3 53. Rg5 {[%emt 0:03:30]} Bd6 {[%emt 0:00:00]} 54. h4 {[%emt 0:04:00]} Rc4 {[%emt 0:00:00]} 55. h5 {[%emt 0:00:30]} Kh6 $19 {[%emt 0:00:00]} 56. Rg2 Kxh5 57. Nf2 {[%emt 0:01:30]} f5 {[%emt 0:00:00]} 0-1

[Event "MARCEL 1st Div Ch-League 2019"]
[Site "Dhaka"]
[Date "2019.11.20"]
[Round "9.2"]
[White "Sarbojit Paul"]
[Black "Mohammad Salman, Munshi"]
[Result "1-0"]
[ECO "B09"]
[WhiteElo "2074"]
[BlackElo "1593"]
[Annotator "NA RC"]
[PlyCount "51"]
[EventDate "2019.11.12"]
[EventCountry "BAN"]
[SourceTitle "playchess.com"]
[Source "ChessBase"]
[SourceQuality "1"]
[TimeControl "5400+30"]

{[%evp 12,51,83,32767,90,79,110,112,93,104,181,136,229,32767,250,231,335,279,294,222,304,294,376,32767,32767,492,472,586,960,1005,1074,947,824,32767,675,900,1301,1669,3008,29982,29995,29996]} 1. e4 {[%emt 0:00:00]} d6 {[%emt 0:09:22]} 2. d4 {[%emt 0:00:22]} Nf6 {[%emt 0:00:02]} 3. Nc3 {[%emt 0:00:08]} g6 {[%emt 0:00:08]} 4. f4 {[%emt 0:00:05]} Bg7 {[%emt 0:00:05]} 5. Nf3 {[%emt 0:00:04]} O-O {[%emt 0:00:06]} 6. Bd3 {[%emt 0:00:05]} Bg4 {[%emt 0:00:19]} (6... Nc6 $11 {remains equal.}) 7. h3 {[%emt 0:00:20]} Bxf3 {[%emt 0:08:19]} 8. Qxf3 {[%emt 0:00:05]} e5 {[%emt 0:00:18] B09: Pirc Defence: Austrian Attack} (8... Nc6 9. Be3 e5 10. dxe5 dxe5 11. f5 Nd4 12. Qf2 c6 13. O-O-O Nh5 14. Be2 Nxe2+ 15. Nxe2 Qa5 16. Kb1 Rfd8 17. g4 Nf4 18. Nxf4 exf4 19. Bxf4 Bxb2 20. Kxb2 Qb4+ 21. Kc1 Qa3+ {½-½ (21) Bailet,P (2466)-Malakhov,V (2660) Brest 2019}) 9. dxe5 {[%emt 0:01:17]} dxe5 {[%emt 0:00:03] [#]} 10. f5 $1 {[%emt 0:00:04]} ({Don't play} 10. fxe5 $6 Nfd7 $11) 10... c6 {[%emt 0:05:32] [#]} (10... Nc6 $16 {might work better.}) 11. g4 {[%emt 0:05:39]} (11. Be3 $1 $18) 11... Re8 {[%emt 0:13:06]} (11... gxf5 $16 12. gxf5 Kh8) 12. Be3 $146 {[%emt 0:01:59]} ({Predecessor:} 12. h4 b5 13. h5 Nbd7 14. Be3 Qa5 15. hxg6 hxg6 16. g5 Nh5 17. Rxh5 gxh5 18. Qxh5 f6 19. O-O-O fxg5 20. Bc4+ bxc4 21. Rxd7 Rf8 22. Qg6 {1-0 (22) Nguyen,N-Bao,Q (2315) Dong Thap 2004}) 12... b5 {[%emt 0:58:40]} 13. O-O-O {[%emt 0:01:57]} Qa5 {[%emt 0:00:00]} (13... Nbd7 $142 14. g5 Nh5 15. Nxb5 cxb5) 14. Kb1 {[%emt 0:05:09]} Na6 {[%emt 0:00:00]} 15. Rhf1 {[%emt 0:01:17]} Qc7 {[%emt 0:00:00]} 16. h4 {[%emt 0:01:31]} h5 {[%emt 0:00:00]} 17. gxh5 {[%emt 0:00:39]} Nxh5 {[%emt 0:00:00]} 18. Rg1 {[%emt 0:02:29]} Nf4 {[%emt 0:00:00]} 19. Ne2 {[%emt 0:14:48]} Bh6 {[%emt 0:00:00]} 20. fxg6 {[%emt 0:02:02]} f6 {[%emt 0:00:00]} 21. Rg4 {[%emt 0:05:53]} Nb4 {[%emt 0:00:00]} 22. Nxf4 {[%emt 0:01:02]} Bxf4 {[%emt 0:00:00]} 23. Bxf4 {[%emt 0:00:22]} Qa5 {[%emt 0:00:00]} 24. a3 {[%emt 0:03:11]} Nxd3 {[%emt 0:00:00]} 25. Qxd3 {[%emt 0:02:12]} exf4 {[%emt 0:00:00]} 26. Qb3+ {[%emt 0:00:25]} 1-0

[Event "MARCEL 1st Div Ch-League 2019"]
[Site "Dhaka"]
[Date "2019.11.20"]
[Round "9.3"]
[White "Md. Nasim Hossain, Bhuiyan"]
[Black "Anisuzzaman, Jewel"]
[Result "1-0"]
[ECO "B07"]
[WhiteElo "1801"]
[BlackElo "1852"]
[Annotator "NA"]
[PlyCount "88"]
[EventDate "2019.11.12"]
[EventCountry "BAN"]
[SourceTitle "playchess.com"]
[Source "ChessBase"]
[SourceQuality "1"]
[TimeControl "5400+30"]

{[%evp 8,84,58,35,32767,34,64,32767,19,21,0,-25,0,0,12,-3,24,32767,32767,0,16,20,23,0,-33,-12,0,-24,13,-26,-20,-110,-41,-63,-69,-87,-77,-63,-72,-179,32767,32767,32767,-17,32767,32767,32767,32767,32767,32767,32767,-148,-139,-209,-112,-298,-155,-158,-191,32767,32767,32767,-80,-185,32767,32767,32767,32767,1526,1546,32767,2686,32767,4563,32767,32767,5710,12843,29980]} 1. e4 {[%emt 0:00:00]} g6 {[%emt 0:00:19]} 2. d4 {[%emt 0:02:06]} d6 {[%emt 0:01:56]} 3. Nc3 {[%emt 0:00:40]} a6 {[%emt 1:29:15]} 4. Be3 {[%emt 0:00:51]} Nf6 {[%emt 1:29:22]} 5. Be2 {[%emt 0:00:05]} (5. Qd2 b5 6. f3 Nbd7 7. O-O-O Nb6 8. g4 Bb7 9. Nh3 Nfd7 10. Be2 e6 11. Bg5 Be7 12. Qe3 Bxg5 13. Nxg5 {0-1 (26) Giri,A (2783)-Nepomniachtchi,I (2763) Wijk aan Zee 2019}) 5... b5 {[%emt 0:00:36]} 6. a3 {[%emt 0:04:19] B07: Pirc Defence: Miscellaneous Systems} (6. e5 $16 b4 7. exf6 bxc3 8. fxe7 (8. bxc3 exf6 9. Bf3 c6 $16) 8... Bxe7 9. bxc3) 6... Nbd7 $146 {[%emt 0:02:29]} ({Predecessor:} 6... Bb7 7. Qd3 Nbd7 8. f4 c5 9. Bf3 cxd4 10. Bxd4 e5 11. fxe5 dxe5 12. Bf2 {½-½ (93) Nielsen,K (2078)-Aabling Thomsen,J (2324) Copenhagen 2012}) 7. g4 {[%emt 0:00:40]} Bb7 {[%emt 0:00:31]} 8. f3 {[%emt 0:03:34]} c5 {[%emt 0:03:15]} 9. d5 {[%emt 0:01:29]} Qc7 {[%emt 0:01:13]} 10. g5 {[%emt 0:02:04]} Nh5 {[%emt 0:02:35]} 11. f4 {[%emt 0:12:00]} Ng7 {[%emt 1:21:31]} 12. h4 {[%emt 0:01:23]} Nb6 {[%emt 0:12:36]} 13. Bf3 {[%emt 0:11:49]} O-O-O {[%emt 0:01:33]} 14. Nge2 {[%emt 0:56:00]} e6 {[%emt 0:04:31]} 15. Ng3 {[%emt 0:00:00]} Re8 {[%emt 0:00:00]} 16. Kf2 $1 {[%emt 0:00:30]} Kb8 {[%emt 0:00:00]} 17. b3 {[%emt 0:00:00]} Qe7 {[%emt 0:00:30]} 18. Qe2 {[%emt 0:00:00]} f5 {[%emt 0:00:00]} 19. exf5 {[%emt 0:00:00]} (19. dxe6 $15 fxe4 20. Ncxe4 (20. Ngxe4 Nf5 $15)) 19... Nxf5 {[%emt 0:00:00]} (19... exd5 $17 20. f6 {[%mdl 64] Double Attack} Qc7 21. Nxb5 (21. fxg7 $2 Bxg7 22. Nxb5 Qd7 $17) 21... Qd7) 20. Nxf5 {[%emt 0:00:00]} exf5 {[%emt 0:00:30]} 21. Rae1 {[%emt 0:01:00]} Bg7 {[%emt 0:00:00]} 22. Qd2 {[%emt 0:00:30]} Qf7 {[%emt 0:00:00]} 23. Kg3 {[%emt 0:01:00]} (23. h5 $15) 23... Re7 {[%emt 0:01:00]} 24. Bf2 {[%emt 0:00:30]} Rhe8 {[%emt 0:00:30]} 25. Rxe7 {[%emt 0:00:30]} Rxe7 {[%emt 0:00:00]} 26. Re1 {[%emt 0:00:30]} Rxe1 27. Qxe1 {[%emt 0:00:00]} Bxc3 {[%emt 0:00:00]} 28. Qxc3 {[%emt 0:00:00]} Bxd5 {[%emt 0:02:30]} 29. Qd3 {[%emt 0:01:30]} (29. b4 $142) 29... Kc7 {[%emt 0:03:00]} 30. Be2 {[%emt 0:00:00]} Bc6 {[%emt 0:00:00]} ({Black should play} 30... Qg7 $19 31. Bf3 Bxf3 32. Kxf3 Qa1) 31. c4 $2 {[%emt 0:01:00]} (31. b4 $17 {is a better defense.}) 31... Qe6 {[%emt 0:00:00]} (31... Qg7 $19 32. cxb5 Bxb5) 32. h5 {[%emt 0:01:11]} bxc4 {[%emt 0:00:00]} 33. bxc4 {[%emt 0:00:00]} Qe4 {[%emt 0:00:00]} 34. Qxe4 {[%emt 0:01:00]} Bxe4 35. h6 {[%emt 0:01:30]} (35. Be1 $17) 35... Kc6 {[%emt 0:00:00]} 36. Bh5 {[%emt 0:00:00]} Nxc4 {[%emt 0:00:00]} 37. Bxg6 {[%emt 0:00:00]} Bd5 {[%emt 0:00:00]} 38. Bxh7 {[%emt 0:01:00]} Nd2 {[%emt 0:00:00]} 39. Bxf5 {[%emt 0:00:30]} Ne4+ {[%emt 0:00:30]} 40. Kh4 {[%emt 0:01:00]} Nxf2 {[%emt 0:00:00]} 41. h7 {[%emt 0:00:30]} c4 {[%emt 0:01:30]} 42. h8=Q {[%emt 0:00:30]} Kc5 {[%emt 0:00:00]} 43. g6 {[%emt 0:00:00]} Nd3 {[%emt 0:00:00]} 44. Bxd3 {[%emt 0:00:00]} cxd3 {[%emt 0:00:30]} 1-0

[Event "MARCEL 1st Div Ch-League 2019"]
[Site "Dhaka"]
[Date "2019.11.20"]
[Round "9.4"]
[White "Sacchu, Afzal Hossain"]
[Black "Md Mutakabbir"]
[Result "1-0"]
[ECO "A68"]
[WhiteElo "1996"]
[BlackElo "1843"]
[Annotator "NA"]
[PlyCount "127"]
[EventDate "2019.11.12"]
[EventCountry "BAN"]
[SourceTitle "playchess.com"]
[Source "ChessBase"]
[SourceQuality "1"]
[TimeControl "5400+30"]

{[%evp 8,126,78,72,85,56,52,32767,56,-23,-7,0,32767,32767,55,42,65,63,60,38,90,33,36,-51,-51,-64,-58,-61,-62,-65,-44,-65,40,13,32767,4,7,-14,93,14,32767,4,8,0,0,-9,-10,-7,32767,32767,32767,32767,-21,-40,-35,-43,32767,-20,32767,-86,-72,-143,-16,32767,32767,32767,32767,0,0,0,0,0,0,0,32767,32767,0,0,32767,0,23,572,29969,12843,29969,29978,29978,0,29988,29989,29989,29990,29990,29991,29991,29989,29989,29988,29988,29990,29991,29990,12851,29992,29994,27997,29992,29991,27999,29993,29993,32767,32767,29995,29995,32767,32767,27999,27999,29998,27999]} 1. d4 {[%emt 0:00:00]} c5 {[%emt 0:04:52]} 2. d5 {[%emt 0:01:02]} Nf6 {[%emt 0:00:29]} 3. c4 {[%emt 0:00:56]} e6 {[%emt 0:00:24]} 4. Nc3 {[%emt 0:00:38]} exd5 {[%emt 0:00:17]} 5. cxd5 {[%emt 1:29:54]} d6 {[%emt 0:00:24] Decoy} 6. e4 {[%emt 0:00:00]} g6 {[%emt 0:00:35]} 7. f4 {[%emt 0:00:00]} Bg7 {[%emt 0:00:15]} 8. Bd3 {[%emt 0:00:00]} ({Better is} 8. Bb5+ $14 Nfd7 9. Nf3) 8... O-O {[%emt 0:00:14]} 9. Nf3 {[%emt 0:00:00]} Re8 {[%emt 0:00:17]} 10. O-O {[%emt 0:00:00]} Bg4 {[%emt 0:04:43] A68: Modern Benoni: Four Pawns Attack without 9...Re8} 11. h3 {[%emt 0:00:00]} Bxf3 {[%emt 0:00:20]} 12. Qxf3 {[%emt 0:00:00]} Nbd7 {[%emt 0:00:30]} 13. Be3 {[%emt 0:00:00]} Nb6 $146 {[%emt 0:01:15]} ({Predecessor:} 13... a6 14. a4 Qc7 15. Rfe1 c4 16. Bf1 Nc5 17. Bf2 Nb3 18. Rad1 Nd7 19. e5 dxe5 20. d6 Qc6 21. Qxc6 bxc6 22. Bxc4 {1-0 (47) Sanikidze,T (2527)-Mgeladze,T (2339) Ureki 2015}) 14. Rad1 {[%emt 0:00:00]} Nfxd5 {[%emt 0:00:29]} 15. Bb5 {[%emt 0:00:00]} ({But not} 15. exd5 $2 Rxe3 {[%mdl 64] Remove Defender} 16. Qxe3 Bd4 $19) (15. Nxd5 $14 Nxd5 16. Bf2 (16. exd5 $2 Rxe3 17. Qxe3 Bd4 $19)) 15... Nxe3 {[%emt 0:01:36]} 16. Qxe3 {[%emt 0:00:00]} Bd4 {[%emt 0:03:02]} 17. Rxd4 {[%emt 0:00:00]} cxd4 {[%emt 0:00:01]} 18. Qxd4 {[%emt 0:06:30]} Re6 {[%emt 0:00:39]} 19. a4 {[%emt 0:00:00]} Qf6 {[%emt 0:05:27]} (19... a5 $15) 20. Qf2 {[%emt 0:00:00]} Qd8 {[%emt 0:04:55]} 21. a5 {[%emt 0:00:00]} a6 {[%emt 1:09:46]} 22. f5 {[%emt 0:02:00]} Re7 {[%emt 0:00:30]} (22... gxf5 $11 {keeps the balance.} 23. Qxf5 Kh8) 23. fxg6 {[%emt 0:00:00]} (23. axb6 $16 axb5 24. Nd5) 23... fxg6 {[%emt 0:00:00]} 24. axb6 axb5 25. Nd5 {[%emt 0:00:00]} Rg7 {[%emt 0:01:30]} 26. Nc7 {[%emt 0:00:00]} Rxc7 {[%emt 0:00:00]} 27. bxc7 {[%emt 0:00:00]} Qxc7 {[%emt 0:00:00]} 28. Qf6 {[%emt 0:00:00]} Re8 {[%emt 0:01:30]} 29. Rf4 {[%emt 0:00:00]} Qe7 {[%emt 0:00:00]} 30. Qc3 {[%emt 0:04:00]} Qe5 {[%emt 0:00:00]} 31. Qb3+ $11 {[%emt 0:00:00]} Kh8 {[%emt 0:01:30]} (31... Re6 32. Qf3) 32. Qf3 {[%emt 0:00:00]} Kg8 {[%emt 0:00:30]} 33. b4 {[%emt 0:00:00]} Rc8 {[%emt 0:00:00]} 34. h4 {[%emt 0:00:00]} ({White should play} 34. Qe3) 34... d5 {[%emt 0:01:00]} ({Better is} 34... Rc1+ $17 35. Kh2 Kg7) 35. exd5 {[%emt 0:02:30]} Rc1+ {[%emt 0:00:00]} 36. Kh2 {[%emt 0:00:00]} Rc4 {[%emt 0:00:00]} 37. g3 {[%emt 0:00:00]} Rxf4 {[%emt 0:00:00]} 38. gxf4 {[%emt 0:00:00]} Qb2+ {[%emt 0:00:00]} 39. Kg3 {[%emt 0:00:00]} Qxb4 {[%emt 0:00:00]} 40. Qe3 {[%emt 0:02:30]} Qf8 {[%emt 0:00:00]} 41. Qe5 {[%emt 0:00:00]} Qc8 {[%emt 0:00:00]} 42. Qe7 {[%emt 0:00:00]} Qc3+ {[%emt 0:00:00]} 43. Kg4 {[%emt 0:00:00]} h5+ {[%emt 0:01:30] [#]} 44. Kg5 $1 {[%emt 0:00:00]} Qg3+ {[%emt 0:00:00]} 45. Kh6 {[%emt 0:00:00]} Qxf4+ {[%emt 0:00:30]} 46. Kxg6 {[%emt 0:00:00]} Qg3+ {[%emt 0:00:00]} 47. Qg5 $2 {[%emt 0:00:00]} (47. Kh6 $18 {[%cal Re7e8]} Qf4+ 48. Qg5+ Qxg5+ 49. hxg5) 47... Qxg5+ $4 {[%emt 0:00:00]} (47... Qd6+ $11 48. Kxh5+ Kf7) 48. hxg5 {[%emt 0:00:00]} b4 {[%emt 0:00:00]} 49. d6 {[%emt 0:00:00]} Kf8 {[%emt 0:00:00]} 50. Kf6 {[%emt 0:00:00]} Ke8 {[%emt 0:00:00]} 51. g6 {[%emt 0:00:00]} Kd7 {[%emt 0:00:00]} 52. g7 {[%emt 0:00:00]} Kxd6 {[%emt 0:04:00]} 53. g8=Q {[%emt 0:00:00]} Kc5 {[%emt 0:00:30]} 54. Qb3 {[%emt 0:00:00]} h4 {[%emt 0:00:00]} 55. Ke5 {[%emt 0:00:00]} h3 {[%emt 0:00:00]} 56. Qxh3 {[%emt 0:00:00]} Kc4 {[%emt 0:00:00]} 57. Qf1+ {[%emt 0:00:00]} Kc3 {[%emt 0:00:00]} 58. Qc1+ {[%emt 0:00:00]} Kb3 {[%emt 0:00:00]} 59. Kd4 {[%emt 0:00:00]} Ka2 {[%emt 0:00:00]} 60. Qc2+ {[%emt 0:00:00]} Ka3 {[%emt 0:00:30]} 61. Qb1 {[%emt 0:00:00]} b5 {[%emt 0:00:00] [#]} 62. Kc5 $1 {[%emt 0:00:00] Double Attack} b3 {[%emt 0:00:00]} 63. Kxb5 {[%emt 0:08:30]} b2 64. Kc4 {[%emt 0:00:00]} 1-0